bitfinex/quotes_ETHUSD_20241004
["timestamp","ask_amount","ask_price","bid_price","bid_amount"]
[1728036565693,7.19835,2381.9,2381.7,0.21397306]
[1728036565994,7.19835,2381.9,2381.8,0.08242282]
[1728036566152,7.19835,2381.9,2381.7,0.21397306]
[1728036566357,7.19835,2381.9,2381.8,0.08242282]
[1728036566553,3.0,2381.9,2381.7,0.21397306]
[1728036566798,3.0,2381.9,2381.8,0.08242282]
[1728036566958,3.0,2381.9,2381.7,0.21397306]
[1728036567295,3.0,2381.9,2381.8,0.08242282]
[1728036567697,3.0,2381.9,2381.7,0.21397306]
[1728036567871,3.0,2381.9,2381.8,0.08242282]
[1728036568284,3.0,2381.9,2381.7,0.21397306]
[1728036568500,3.0,2381.9,2381.8,0.08242282]
[1728036568897,3.0,2381.9,2381.7,0.21397306]
[1728036569194,3.0,2381.9,2381.8,0.08242282]
[1728036569396,7.19832,2381.9,2381.7,0.21397306]
[1728036569605,4.19819,2382.0,2381.8,0.08242282]
[1728036569903,3.0,2381.9,2381.7,0.21397306]
[1728036570400,8.90886966,2381.8,2381.7,0.21397306]
[1728036571012,4.19942,2381.3,2381.0,0.7766]
[1728036571205,4.19958,2381.2,2381.0,0.7766]
[1728036571796,4.19942,2381.3,2381.0,0.7766]
[1728036571992,4.19942,2381.3,2381.1,0.21344285]
[1728036572391,4.19926,2381.4,2381.1,0.21344285]
[1728036577127,4.19926,2381.4,2381.2,0.08297176]
[1728036577915,4.19905,2381.5,2381.2,0.08297176]
[1728036578424,4.19935,2381.4,2381.2,0.08297176]
[1728036578626,4.19905,2381.5,2381.2,0.08297176]
[1728036578929,8.39822,2381.5,2381.2,0.08297176]
[1728036579625,4.19922,2381.4,2381.2,0.08297176]
[1728036584320,4.19938,2381.3,2381.2,0.08297176]
[1728036585636,6.81141354,2381.3,2381.2,0.08297176]
[1728036588304,6.00461354,2381.3,2381.2,0.08297176]
[1728036588639,7.10761689,2381.3,2381.2,0.08297176]
[1728036589002,5.30238335,2381.3,2381.2,0.08297176]
[1728036589225,4.19956,2381.2,2381.1,0.21344285]
[1728036589426,4.19956,2381.2,2381.1,0.29659528]
[1728036591204,6.00479354,2381.2,2381.1,0.29659528]
[1728036591623,6.78809354,2381.2,2381.1,0.29659528]
[1728036593050,6.00479354,2381.2,2381.1,0.29659528]
[1728036594637,7.10173089,2381.2,2381.1,0.29659528]
[1728036597634,7.86133089,2381.2,2381.1,0.29659528]
[1728036600245,6.00479354,2381.2,2381.1,0.29659528]
[1728036601443,4.19956,2381.2,2381.1,0.29659528]
[1728036602265,3.0,2381.3,2381.1,0.29659528]
[1728036602837,4.19938,2381.3,2381.2,0.767]
[1728036603248,4.19921,2381.4,2381.2,0.767]
[1728036603638,4.19938,2381.3,2381.2,0.767]
[1728036604233,4.19938,2381.3,2381.1,0.21344285]
[1728036604433,1.80523354,2381.5,2381.1,0.21344285]
[1728036604675,4.19941,2381.3,2381.1,0.21344285]
[1728036605029,8.39889,2381.3,2381.1,0.21344285]
[1728036605845,4.19941,2381.3,2381.1,0.21344285]
[1728036606036,4.19921,2381.4,2381.1,0.21344285]
[1728036606358,4.19921,2381.4,2381.1,0.73061514]
[1728036606868,4.19938,2381.3,2381.2,0.8096]
[1728036607067,4.19921,2381.4,2381.2,0.89260733]
[1728036607365,1.80523354,2381.6,2381.2,0.89260733]
[1728036607565,4.19919,2381.5,2381.2,0.89260733]
[1728036607768,4.19919,2381.5,2381.2,1.47489358]
[1728036607769,4.19918,2381.5,2381.2,1.47489358]
[1728036607936,4.19917,2381.5,2381.2,1.47489358]
[1728036608132,4.19928,2381.4,2381.2,0.89260733]
[1728036608633,4.19936,2381.4,2381.2,0.89260733]
[1728036610672,4.19903,2381.5,2381.2,0.89260733]
[1728036611296,7.19894,2381.6,2381.2,5.09209733]
[1728036611595,7.19894,2381.6,2381.3,0.95052402]
[1728036611995,7.19894,2381.6,2381.4,0.08276787]
[1728036613262,4.19903,2381.5,2381.4,0.08276787]
[1728036613463,4.19903,2381.5,2381.2,0.8096]
[1728036613761,6.00411354,2381.6,2381.3,0.08285712]
[1728036613962,6.00411354,2381.6,2381.3,0.950516]
[1728036614398,6.00411354,2381.6,2381.4,0.08276787]
[1728036614705,3.0,2381.8,2381.5,4.98318]
[1728036614859,4.19852,2381.8,2381.5,0.7842]
[1728036615188,4.19852,2381.8,2381.6,0.08246412]
[1728036615999,4.19866,2381.8,2381.6,0.08246412]
[1728036617770,10.20213354,2381.9,2381.6,0.08246412]
[1728036617975,4.19853,2381.8,2381.6,0.08246412]
[1728036618670,4.19853,2381.8,2381.7,0.20808866]
[1728036618998,4.19853,2381.8,2381.7,0.29046356]
[1728036620891,10.20211354,2381.9,2381.7,0.29046356]
[1728036621403,6.00366354,2381.9,2381.7,0.29046356]
[1728036621614,10.20209354,2381.9,2381.7,0.29046356]
[1728036622082,4.1985,2381.8,2381.7,0.29046356]
[1728036623105,6.00359354,2381.9,2381.7,0.29046356]
[1728036623683,4.19817,2382.0,2381.7,0.29046356]
[1728036623884,3.7727,2382.1,2381.8,0.7559]
[1728036623885,7.19809,2382.1,2381.8,0.7559]
[1728036624095,0.7801,2382.3,2381.8,0.7559]
[1728036624096,4.19769,2382.3,2381.9,4.27765795]
[1728036624418,4.19745,2382.4,2382.0,4.19814]
[1728036624585,4.19745,2382.4,2382.1,0.7559]
[1728036625401,4.19745,2382.4,2382.1,1.2592538]
[1728036627117,4.19762,2382.3,2382.1,1.2592538]
[1728036627278,4.19762,2382.3,2382.1,0.7559]
[1728036627976,4.19782,2382.2,2381.9,0.07933795]
[1728036628175,9.00338354,2382.0,2381.9,0.07933795]
[1728036628378,9.80498354,2382.0,2381.9,0.07933795]
[1728036628617,9.80498354,2382.0,2381.9,0.28699445]
[1728036630215,9.80498354,2382.0,2381.9,0.07933795]
[1728036638542,9.00338354,2382.0,2381.9,0.07933795]
[1728036639042,9.00338354,2382.0,2381.9,0.19911568]
[1728036640630,10.43216223,2382.0,2381.9,0.19911568]
[1728036641446,10.43216223,2382.0,2381.9,0.07933795]
[1728036643306,9.00338354,2382.0,2381.9,0.07933795]
[1728036643540,9.00338354,2382.0,2381.9,0.19911568]
[1728036647552,9.00338354,2382.0,2381.9,0.07933795]
[1728036648375,9.00338354,2382.0,2381.9,0.19911568]
[1728036648742,9.00338354,2382.0,2381.9,0.07933795]
[1728036652249,11.17539389,2382.0,2381.9,0.07933795]
[1728036653690,9.00338354,2382.0,2381.9,0.07933795]
[1728036654455,9.00338354,2382.0,2381.9,0.19905135]
[1728036664382,9.00338354,2382.0,2381.9,0.07933795]
[1728036668183,9.80278354,2382.0,2381.9,0.07933795]
[1728036668895,20.16301354,2382.0,2381.9,0.07933795]
[1728036669101,21.63713151,2382.0,2381.9,0.07933795]
[1728036669301,21.28549951,2382.0,2381.9,0.07933795]
[1728036669687,12.67842451,2382.0,2381.9,0.07933795]
[1728036670264,10.24232116,2382.0,2381.9,0.07933795]
[1728036670500,9.80278354,2382.0,2381.9,0.07933795]
[1728036671527,9.00338354,2382.0,2381.9,0.07933795]
[1728036671863,9.78588354,2382.0,2381.9,0.07933795]
[1728036677078,7.19815,2382.0,2381.9,0.07933795]
[1728036677271,9.00338354,2382.0,2381.9,0.07933795]
[1728036685948,9.83058354,2382.0,2381.9,0.07933795]
[1728036690431,9.00338354,2382.0,2381.9,0.07933795]
[1728036691219,9.00338354,2382.0,2381.9,0.19930185]
[1728036691632,9.00338354,2382.0,2381.9,0.07933795]
[1728036699757,9.76688354,2382.0,2381.9,0.07933795]
[1728036700056,11.16337389,2382.0,2381.9,0.07933795]
[1728036704452,9.35814035,2382.0,2381.9,0.07933795]
[1728036704653,9.00338354,2382.0,2381.9,0.07933795]
[1728036709023,7.19815,2382.0,2381.9,0.07933795]
[1728036709225,9.00338354,2382.0,2381.9,0.07933795]
[1728036710141,7.19815,2382.0,2381.9,0.07933795]
[1728036710468,4.19815,2382.0,2381.9,0.19932892]
[1728036710670,4.19815,2382.0,2381.9,0.89183795]
[1728036710969,4.19815,2382.0,2381.9,1.01182892]
[1728036712746,4.19815,2382.0,2381.9,0.89183795]
[1728036712946,4.19815,2382.0,2381.9,1.01182892]
[1728036713475,7.19815,2382.0,2381.9,1.01182892]
[1728036713658,7.19815,2382.0,2381.9,0.07933795]
[1728036715074,7.19815,2382.0,2381.9,0.19932892]
[1728036715272,7.19815,2382.0,2381.9,0.84853795]
[1728036715448,7.19815,2382.0,2381.9,0.96852892]
[1728036718746,7.19815,2382.0,2381.9,0.07933795]
[1728036720753,7.19815,2382.0,2381.9,0.19932892]
[1728036723387,7.19815,2382.0,2381.9,0.07933795]
[1728036725088,7.19815,2382.0,2381.9,0.19930862]
[1728036725294,7.19815,2382.0,2381.9,0.07933795]
[1728036726481,7.19815,2382.0,2381.9,0.19930862]
[1728036726676,7.19815,2382.0,2381.9,0.07933795]
[1728036727210,7.19815,2382.0,2381.9,0.19930862]
[1728036728999,7.19815,2382.0,2381.9,0.07933795]
[1728036732380,7.19815,2382.0,2381.9,0.19931538]
[1728036733397,8.51829035,2382.0,2381.9,0.07933795]
[1728036733721,9.29909035,2382.0,2381.9,0.07933795]
[1728036741113,8.51829035,2382.0,2381.9,0.07933795]
[1728036741313,7.19815,2382.0,2381.9,0.07933795]
[1728036741601,9.00338354,2382.0,2381.9,0.07933795]
[1728036748125,15.26460454,2382.0,2381.9,0.07933795]
[1728036749040,16.04210454,2382.0,2381.9,0.07933795]
[1728036751054,12.80098254,2382.0,2381.9,0.07933795]
[1728036751348,14.50088279,2382.0,2381.9,0.07933795]
[1728036754108,11.48078379,2382.0,2381.9,0.07933795]
[1728036754314,22.37940779,2382.0,2381.9,0.07933795]
[1728036756044,21.47927479,2382.0,2381.9,0.07933795]
[1728036757143,18.82273779,2382.0,2381.9,0.07933795]
[1728036758053,19.26229526,2382.0,2381.9,0.07933795]
[1728036764879,26.24288826,2382.0,2381.9,0.07933795]
[1728036767070,25.80333079,2382.0,2381.9,0.07933795]
[1728036769799,4.19991,2381.0,2380.9,0.7517]
[1728036769999,6.00514354,2381.0,2380.9,0.87012951]
[1728036770195,6.00514354,2381.0,2380.9,0.7517]
[1728036770612,6.00514354,2381.0,2380.9,0.87012951]
[1728036771536,10.44559989,2381.0,2380.9,1.07712696]
[1728036771842,10.44559989,2381.0,2380.9,0.95869745]
[1728036774328,9.00514354,2381.0,2380.9,0.95869745]
[1728036775017,9.00514354,2381.0,2380.9,1.07373976]
[1728036776016,4.19991,2381.0,2380.9,1.07373976]
[1728036776443,6.00514354,2381.0,2380.9,1.07373976]
[1728036783092,4.19991,2381.0,2380.9,1.07373976]
[1728036783259,4.19991,2381.0,2380.9,0.32203976]
[1728036783458,4.19978,2381.1,2380.9,0.32203976]
[1728036783878,4.19978,2381.1,2381.0,0.7912]
[1728036784381,4.1996,2381.2,2381.0,0.9061851]
[1728036784697,4.19946,2381.3,2381.0,0.9061851]
[1728036784901,4.19965,2381.2,2381.0,0.9061851]
[1728036790693,4.19965,2381.2,2381.0,1.43752836]
[1728036791025,8.39938,2381.2,2381.0,1.43752836]
[1728036791185,4.19965,2381.2,2381.0,1.43752836]
[1728036791390,4.19965,2381.2,2381.1,0.7545]
[1728036791591,4.19965,2381.2,2381.1,0.86546913]
[1728036791913,4.19941,2381.3,2381.1,0.86546913]
[1728036792320,4.19956,2381.2,2381.1,0.86546913]
[1728036795632,3.92092545,2381.2,2381.1,0.86546913]
[1728036795992,3.92092545,2381.2,2381.1,1.44585811]
[1728036797535,4.19945,2381.3,2381.1,1.44585811]
[1728036798240,4.19891,2381.6,2381.3,0.7676]
[1728036798444,4.19891,2381.6,2381.5,0.7676]
[1728036798750,4.80523354,2381.9,2381.5,0.7676]
[1728036798751,3.0,2381.8,2381.5,0.7676]
[1728036798935,4.19875,2381.7,2381.5,0.87795088]
[1728036799106,4.19885,2381.6,2381.5,0.87795088]
[1728036800612,4.19885,2381.6,2381.5,1.43535387]
[1728036801143,4.19885,2381.6,2381.5,0.87795088]
[1728036803911,4.19885,2381.6,2381.5,1.09358423]
[1728036812471,6.00394354,2381.7,2381.5,1.09358423]
[1728036812674,7.19853,2381.8,2381.5,1.09358423]
[1728036812870,4.19868,2381.7,2381.6,0.57894232]
[1728036813176,6.00391354,2381.7,2381.5,1.09358423]
[1728036813339,6.00391354,2381.7,2381.6,0.11001603]
[1728036825757,7.1985,2381.8,2381.6,0.11001603]
[1728036831206,4.1985,2381.8,2381.6,0.11001603]
[1728036832275,8.39717,2381.8,2381.6,0.11001603]
[1728036832476,4.19868,2381.7,2381.6,0.11001603]
[1728036839474,4.19852,2381.8,2381.6,0.11001603]
[1728036839674,4.19852,2381.8,2381.7,0.765]
[1728036840062,4.19852,2381.8,2381.7,0.87483361]
[1728036841710,4.19816,2382.0,2381.7,0.87483361]
[1728036841866,4.19817,2382.0,2381.7,5.07350361]
[1728036842071,4.19817,2382.0,2381.8,0.56910252]
[1728036842596,4.19817,2382.0,2381.9,0.10965158]
[1728036843486,4.19817,2382.0,2381.7,0.765]
[1728036843669,4.19817,2382.0,2381.9,0.10965158]
[1728036843872,4.19817,2382.0,2381.5,5.73875362]
[1728036843873,6.00355354,2381.9,2381.8,0.10974259]
[1728036844195,10.20202354,2381.9,2381.5,6.08597019]
[1728036844558,10.20202354,2381.9,2381.6,1.16092805]
[1728036844874,6.00355354,2381.9,2381.6,1.16092805]
[1728036846601,4.19817,2382.0,2381.7,0.793]
[1728036846805,4.19817,2382.0,2381.8,0.6152768]
[1728036846954,4.19817,2382.0,2381.8,0.72501939]
[1728036849398,6.00340354,2382.0,2381.8,0.10974259]
[1728036849598,4.19832,2381.9,2381.7,0.793]
[1728036851072,6.00343354,2382.0,2381.7,0.793]
[1728036851599,6.00343354,2382.0,2381.7,1.40202502]
[1728036856569,10.20174354,2382.0,2381.7,1.40202502]
[1728036857267,6.00343354,2382.0,2381.7,1.40202502]
[1728036858680,10.20174354,2382.0,2381.7,1.40202502]
[1728036860668,4.19834,2381.9,2381.7,1.40202502]
[1728036860896,8.39684,2381.9,2381.7,1.40202502]
[1728036861097,4.19885,2381.6,2381.5,0.21563335]
[1728036862019,4.19885,2381.6,2381.5,0.32553394]
[1728036867192,6.00408354,2381.6,2381.5,0.32553394]
[1728036871122,4.19885,2381.6,2381.5,0.32553394]
[1728036871479,6.76048354,2381.6,2381.5,0.32553394]
[1728036871884,7.85641389,2381.6,2381.5,0.32553394]
[1728036872282,10.85641389,2381.6,2381.5,0.32553394]
[1728036873881,7.19885,2381.6,2381.5,0.32553394]
[1728036875487,9.82348354,2381.6,2381.5,0.32553394]
[1728036881044,9.00408354,2381.6,2381.5,0.32553394]
[1728036882048,7.19885,2381.6,2381.5,1.08653394]
[1728036882518,9.00408354,2381.6,2381.5,1.08653394]
[1728036887868,3.0,2381.6,2381.5,1.08653394]
[1728036888013,4.19858,2381.8,2381.5,1.08653394]
[1728036888220,4.19872,2381.7,2381.5,1.08653394]
[1728036889234,4.19872,2381.7,2381.5,1.61511933]
[1728036890746,6.00374354,2381.8,2381.5,1.61511933]
[1728036891589,1.80523354,2381.6,2381.5,0.85411933]
[1728036891798,1.80523354,2381.6,2381.5,0.32553394]
[1728036891957,6.00408354,2381.6,2381.5,0.32553394]
[1728036908049,4.19885,2381.6,2381.5,0.32553394]
[1728036909338,4.19868,2381.7,2381.6,0.811]
[1728036909517,4.19868,2381.7,2381.5,0.32553394]
[1728036909724,4.19868,2381.7,2381.6,0.11003975]
[1728036928544,4.14868,2381.7,2381.6,0.11003975]
[1728036929171,5.95391354,2381.7,2381.6,0.88163975]
[1728036929661,5.95391354,2381.7,2381.6,0.11003975]
[1728036932049,4.14868,2381.7,2381.6,0.11003975]
[1728036934788,6.00356354,2381.9,2381.6,0.87753975]
[1728036935103,4.19828,2382.0,2381.7,0.7675]
[1728036935384,8.39657,2382.0,2381.8,0.10979338]
[1728036935591,8.39657,2382.0,2381.8,0.50762898]
[1728036935786,4.19828,2382.0,2381.9,0.10970237]
[1728036936099,4.19827,2382.0,2381.9,0.10970237]
[1728036936393,4.19827,2382.0,2381.7,0.7675]
[1728036936589,4.19827,2382.0,2381.7,1.37396502]
[1728036936747,4.19827,2382.0,2381.8,0.10979338]
[1728036937275,4.19827,2382.0,2381.7,1.37396502]
[1728036937276,10.20141354,2382.1,2381.9,0.10970237]
[1728036937474,6.00327354,2382.1,2381.9,0.10970237]
[1728036937785,10.20138354,2382.1,2382.0,0.10961136]
[1728036938951,0.8068,2382.3,2382.0,0.10961136]
[1728036938952,4.19775,2382.3,2382.1,0.8167]
[1728036939149,4.19778,2382.3,2382.1,0.8167]
[1728036939448,4.19778,2382.3,2382.2,0.10942938]
[1728036941591,4.19778,2382.3,2382.2,0.32345237]
[1728036943394,5.21782835,2382.3,2382.2,0.32345237]
[1728036949265,4.19778,2382.3,2382.2,0.32345237]
[1728036952705,6.00301354,2382.3,2382.2,0.32345237]
[1728036956985,4.19778,2382.3,2382.2,0.32345237]
[1728036959172,4.19778,2382.3,2382.2,1.10375237]
[1728036960491,4.19694,2382.7,2382.2,1.10375237]
[1728036960492,4.19752,2382.4,2382.2,1.10375237]
[1728036960695,4.19762,2382.3,2382.2,1.10375237]
[1728036962016,6.00285354,2382.3,2382.2,1.10375237]
[1728036962202,7.02289089,2382.3,2382.2,0.32345237]
[1728036963222,4.19762,2382.3,2382.2,0.32345237]
[1728036966816,6.00285354,2382.3,2382.2,0.32345237]
[1728036967019,6.00285354,2382.3,2382.2,0.21402299]
[1728036967231,4.1985,2381.8,2381.7,0.7928]
[1728036967456,4.1991,2381.5,2381.4,0.7928]
[1728036967820,6.00410354,2381.6,2381.4,0.7928]
[1728036968023,4.19887,2381.6,2381.4,0.7928]
[1728036968225,2.58193354,2381.8,2381.4,0.7928]
[1728036968226,4.19903,2381.5,2381.4,0.7928]
[1728036970172,4.19903,2381.5,2381.4,1.00196786]
[1728036970741,4.19888,2381.6,2381.4,1.00196786]
[1728036971259,4.19875,2381.7,2381.4,1.00196786]
[1728036975981,4.19887,2381.6,2381.4,1.00196786]
[1728036976346,4.19903,2381.5,2381.4,0.20916786]
[1728036977274,6.00412354,2381.6,2381.4,0.20916786]
[1728036977476,4.19889,2381.6,2381.4,0.20916786]
[1728036977802,4.19889,2381.6,2381.5,0.7546]
[1728036981142,4.19903,2381.5,2381.4,0.20916786]
[1728036981293,5.87159,2381.5,2381.4,0.20916786]
[1728036983654,9.78352772,2381.5,2381.4,0.20916786]
[1728036985454,8.94376772,2381.5,2381.4,0.20916786]
[1728036987804,8.94376772,2381.5,2381.4,0.31250775]
[1728036988111,8.94376772,2381.5,2381.4,0.20916786]
[1728036989719,8.94376772,2381.5,2381.4,0.31250775]
[1728036991115,8.94376772,2381.5,2381.4,0.20916786]
[1728036991635,8.94376772,2381.5,2381.4,0.31250775]
[1728036993498,5.03183,2381.5,2381.4,0.31250775]
[1728036993719,4.19903,2381.5,2381.4,0.31250775]
[1728036993928,8.11096772,2381.5,2381.4,0.31250775]
[1728036994133,9.42067349,2381.5,2381.4,0.31250775]
[1728036995134,5.50873577,2381.5,2381.4,0.31250775]
[1728036995636,4.19903,2381.5,2381.4,0.31250775]
[1728037007960,4.19897,2381.6,2381.4,0.31250775]
[1728037008299,8.39799,2381.6,2381.4,0.31250775]
[1728037008486,4.19903,2381.5,2381.4,0.31250775]
[1728037013427,1.80501762,2381.7,2381.4,0.31250775]
[1728037013428,6.00373762,2381.7,2381.4,0.31250775]
[1728037013731,4.19888,2381.6,2381.4,0.83981453]
[1728037013894,8.39789,2381.6,2381.4,0.31250775]
[1728037014533,4.19888,2381.6,2381.4,0.31250775]
[1728037014833,4.19903,2381.5,2381.4,0.31250775]
[1728037017349,4.19903,2381.5,2381.4,1.19527459]
[1728037017857,4.19903,2381.5,2381.4,0.31250775]
[1728037020317,7.02434238,2381.5,2381.4,0.31250775]
[1728037020517,7.84084238,2381.5,2381.4,0.31250775]
[1728037020712,7.84084238,2381.5,2381.4,0.20916786]
[1728037022122,4.19903,2381.5,2381.4,0.20916786]
[1728037022326,4.19903,2381.5,2381.4,0.31173339]
[1728037023858,4.1989,2381.6,2381.4,0.31173339]
[1728037024085,4.1989,2381.6,2381.5,0.7851]
[1728037024386,4.1989,2381.6,2381.5,0.887693]
[1728037027280,4.1989,2381.6,2381.5,0.102593]
[1728037029991,4.19868,2381.7,2381.5,0.102593]
[1728037030188,4.19868,2381.7,2381.5,0.63590609]
[1728037030681,4.19868,2381.7,2381.6,0.7943]
[1728037031049,4.19868,2381.7,2381.6,0.89666653]
[1728037032384,4.19868,2381.7,2381.6,0.10236653]
[1728037032584,6.00369762,2381.7,2381.6,0.10236653]
[1728037033183,6.00369762,2381.7,2381.4,0.98026786]
[1728037033383,10.20247762,2381.7,2381.4,0.98026786]
[1728037033593,4.19885,2381.6,2381.4,0.98026786]
[1728037033752,6.00404762,2381.5,2381.4,0.20916786]
[1728037034262,6.83724762,2381.5,2381.4,0.20916786]
[1728037036881,4.20009,2380.9,2380.7,1.67706684]
[1728037037387,4.20026,2380.8,2380.7,0.7943]
[1728037037595,4.20011,2380.9,2380.7,0.7943]
[1728037038303,4.20026,2380.8,2380.7,0.7943]
[1728037039413,4.97728,2381.2,2380.7,6.31670703]
[1728037039414,4.19989,2381.1,2380.7,6.31670703]
[1728037039579,4.20009,2380.9,2380.8,0.76408573]
[1728037039912,8.02286,2380.8,2380.7,0.20861837]
[1728037041670,11.93732529,2380.8,2380.7,0.20861837]
[1728037042223,13.97107182,2380.8,2380.7,0.20861837]
[1728037045214,52.72325582,2380.8,2380.7,0.20861837]
[1728037045512,48.24101682,2380.8,2380.7,0.20861837]
[1728037045671,44.11688282,2380.8,2380.7,0.20861837]
[1728037045874,41.55985282,2380.8,2380.7,0.20861837]
[1728037046773,33.80084682,2380.8,2380.7,0.20861837]
[1728037047297,5.02392,2380.2,2380.1,0.1173537]
[1728037047473,8.11578529,2380.2,2380.1,0.1173537]
[1728037047674,4.20132,2380.2,2380.1,0.1173537]
[1728037048412,7.20108,2380.4,2380.2,0.7674]
[1728037048719,7.20108,2380.4,2380.2,1.30722769]
[1728037048932,7.20108,2380.4,2380.3,0.09804772]
[1728037050316,4.20124,2380.3,2380.1,0.1173537]
[1728037051308,4.20132,2380.2,2380.1,0.1173537]
[1728037052519,4.20117,2380.3,2380.1,0.1173537]
[1728037052672,3.0,2380.4,2380.1,0.1173537]
[1728037052873,7.201,2380.4,2380.1,0.1173537]
[1728037053073,4.20131,2380.3,2380.1,0.1173537]
[1728037054601,4.20132,2380.2,2380.1,0.1173537]
[1728037054809,4.20131,2380.3,2380.1,0.1173537]
[1728037055178,4.20126,2380.3,2380.1,0.1173537]
[1728037055381,4.20132,2380.2,2380.1,0.1173537]
[1728037057012,4.20126,2380.3,2380.1,0.21558369]
[1728037058511,4.20132,2380.2,2380.1,0.21558369]
[1728037060858,4.20094,2380.5,2380.1,0.21558369]
[1728037061060,4.20118,2380.3,2380.1,0.21558369]
[1728037063642,3.0,2380.4,2380.2,0.8102]
[1728037064042,3.0,2380.4,2380.3,0.09810192]
[1728037064983,4.20097,2380.4,2380.3,0.09810192]
[1728037065141,4.20115,2380.3,2380.2,0.8102]
[1728037065480,4.20097,2380.4,2380.2,0.90839305]
[1728037065668,8.40205,2380.4,2380.2,0.90839305]
[1728037066169,4.20097,2380.4,2380.2,0.90839305]
[1728037067853,3.0,2380.5,2380.2,1.45251472]
[1728037068063,3.0,2380.6,2380.2,1.45251472]
[1728037068401,7.20066,2380.6,2380.2,5.65377472]
[1728037069658,7.20066,2380.6,2380.3,0.99724984]
[1728037069952,7.20066,2380.6,2380.4,0.09799726]
[1728037070158,4.20079,2380.5,2380.4,0.09799726]
[1728037070389,4.20079,2380.5,2380.2,1.35432167]
[1728037070553,4.68206529,2380.8,2380.3,0.09808839]
[1728037070753,4.20069,2380.6,2380.3,0.09808839]
[1728037071296,4.2009,2380.5,2380.3,0.09808839]
[1728037077591,4.96803,2380.8,2380.3,1.09533377]
[1728037077793,4.20066,2380.6,2380.3,1.09533377]
[1728037078088,4.20066,2380.6,2380.3,0.09808839]
[1728037078089,8.4014,2380.6,2380.3,0.09808839]
[1728037079960,4.20081,2380.5,2380.3,0.09808839]
[1728037081294,7.20022,2380.9,2380.5,0.8129]
[1728037081515,4.20017,2380.9,2380.5,0.8129]
[1728037081820,4.19994,2381.0,2380.7,0.8129]
[1728037081956,2.61851586,2381.2,2380.6,0.09781503]
[1728037081957,4.20044,2380.7,2380.6,0.09781503]
[1728037082158,5.22116159,2380.7,2380.6,0.09781503]
[1728037082357,4.20064,2380.6,2380.3,0.8129]
[1728037082599,4.20064,2380.6,2380.4,0.09786846]
[1728037082792,8.40101,2380.7,2380.4,0.09786846]
[1728037082967,4.20044,2380.7,2380.4,0.09786846]
[1728037083995,4.20044,2380.7,2380.4,4.29882846]
[1728037084408,6.81883586,2380.8,2380.4,4.29882846]
[1728037085260,6.81883586,2380.8,2380.6,0.21230496]
[1728037085768,6.81883586,2380.8,2380.7,0.09760869]
[1728037086096,1.80651586,2380.8,2380.7,0.09760869]
[1728037086261,6.00677586,2380.8,2380.7,0.09760869]
[1728037088303,1.80651586,2380.8,2380.7,0.09760869]
[1728037088474,4.20009,2380.9,2380.7,0.09760869]
[1728037088901,4.20026,2380.8,2380.7,0.09760869]
[1728037089780,6.00677586,2380.8,2380.7,0.09760869]
[1728037091705,1.80651586,2380.8,2380.7,0.09760869]
[1728037092323,4.20026,2380.8,2380.7,0.09760869]
[1728037092889,6.00677586,2380.8,2380.7,0.09760869]
[1728037093220,7.10483245,2380.8,2380.7,0.09760869]
[1728037094250,4.20026,2380.8,2380.7,0.09760869]
[1728037094604,4.20009,2380.9,2380.7,0.09760869]
[1728037095217,4.19992,2381.0,2380.7,0.91020869]
[1728037096127,7.19949,2381.3,2380.8,0.7717]
[1728037096429,7.19961,2381.2,2380.9,0.09736891]
[1728037096632,4.19983,2381.1,2380.9,0.09736891]
[1728037098333,4.19991,2381.0,2380.9,0.09736891]
[1728037101184,4.19976,2381.1,2380.9,0.09736891]
[1728037101680,7.19958,2381.2,2380.9,0.09736891]
[1728037101847,7.19958,2381.2,2381.0,0.81]
[1728037102185,3.0,2381.2,2381.1,0.09718676]
[1728037102783,4.19922,2381.4,2381.2,0.81]
[1728037102989,4.19922,2381.4,2381.3,0.09690977]
[1728037103290,4.19922,2381.4,2381.2,0.81]
[1728037103488,4.19882,2381.7,2381.3,0.09690977]
[1728037103686,4.19882,2381.7,2381.4,0.8297]
[1728037103888,4.19852,2381.8,2381.4,5.02889]
[1728037104044,4.19852,2381.8,2381.5,0.09672769]
[1728037104245,4.19844,2381.9,2381.6,0.8297]
[1728037104558,4.19844,2381.9,2381.7,0.09618997]
[1728037104873,8.39689,2381.9,2381.7,0.09618997]
[1728037105184,4.19844,2381.9,2381.7,0.09618997]
[1728037105360,4.1985,2381.8,2381.7,0.09618997]
[1728037105691,4.1985,2381.8,2381.7,0.30217696]
[1728037107472,3.0,2382.2,2381.7,0.30217696]
[1728037107661,4.19837,2381.9,2381.7,0.30217696]
[1728037108490,4.19827,2382.0,2381.7,0.30217696]
[1728037108779,0.8325,2382.3,2381.8,0.8304]
[1728037108780,4.19806,2382.1,2381.8,0.8304]
[1728037108985,4.19815,2382.0,2381.8,0.8304]
[1728037109187,1.80651586,2382.2,2381.9,0.09393344]
[1728037109394,4.19801,2382.1,2381.9,0.09393344]
[1728037114596,4.19815,2382.0,2381.9,0.09393344]
[1728037114889,6.00466586,2382.0,2381.9,0.09393344]
[1728037115091,7.10285345,2382.0,2381.9,0.09393344]
[1728037115301,4.1985,2381.8,2381.7,0.20598699]
[1728037115453,6.81671586,2381.8,2381.7,0.20598699]
[1728037115868,4.19938,2381.3,2381.2,0.8318]
[1728037116294,4.19938,2381.3,2381.2,0.9261946]
[1728037116649,4.19938,2381.3,2381.0,0.8118]
[1728037116793,4.19973,2381.1,2381.0,0.8118]
[1728037116994,6.00609586,2381.2,2381.0,0.90633871]
[1728037117583,4.19911,2381.5,2381.0,5.31913076]
[1728037117787,4.19911,2381.5,2381.1,0.53191308]
[1728037118100,4.19922,2381.4,2381.2,0.09443447]
[1728037118693,3.0,2381.5,2381.2,0.09443447]
[1728037118891,11.39825,2381.5,2381.2,0.09443447]
[1728037121665,4.19922,2381.4,2381.2,0.09443447]
[1728037121871,4.19938,2381.3,2381.2,0.09443447]
[1728037122178,4.19957,2381.2,2381.0,1.02470205]
[1728037122385,4.19957,2381.2,2381.1,0.09452553]
[1728037122585,0.7784,2381.7,2381.1,0.09452553]
[1728037122786,4.19757,2382.4,2381.4,4.99588]
[1728037122787,4.19854,2381.8,2381.4,4.99588]
[1728037123108,4.19854,2381.8,2381.5,1.01370442]
[1728037125875,4.19854,2381.8,2381.6,0.20880342]
[1728037126276,4.19854,2381.8,2381.7,0.09400636]
[1728037131520,5.00334,2381.8,2381.7,0.09400636]